[Event "2nd Goa GM Open 2019"]
[Site "Goa"]
[Date "2019.06.22"]
[Round "7.14"]
[White "Burmakin, Vladimir"]
[Black "Neelash Saha"]
[Result "1/2-1/2"]
[ECO "A14"]
[WhiteElo "2526"]
[BlackElo "2315"]
[Annotator "ChessBase"]
[PlyCount "145"]
[EventDate "2019.06.17"]
[EventType "swiss"]
[EventCountry "IND"]
[SourceTitle "playchess.com"]
[Source "ChessBase"]
[SourceQuality "1"]
[TimeControl "5400+30"]

1. Nf3 {[%emt 0:00:00]} d5 {[%emt 0:00:00]} 2. g3 {[%emt 0:00:00]} Nf6 {[%emt 0:00:28]} 3. c4 {[%emt 0:00:14]} e6 {[%emt 0:00:07]} 4. Bg2 {[%emt 0:00:15]} Be7 {[%emt 0:00:05]} 5. O-O {[%emt 0:00:08]} O-O {[%emt 0:00:04]} 6. d4 {[%emt 0:00:35]} dxc4 {[%emt 0:01:36]} 7. Qc2 {[%emt 0:00:06]} a6 {[%emt 0:00:07]} 8. a4 {[%emt 0:00:55]} Bd7 {[%emt 0:00:16]} 9. Qxc4 {[%emt 0:01:26]} Bc6 {[%emt 0:01:11]} 10. Bf4 {[%emt 0:00:49]} Bd6 {[%emt 0:00:24]} 11. Bg5 {[%emt 0:00:22]} Nbd7 12. Nc3 {[%emt 0:03:03]} h6 {[%emt 0:01:53]} 13. Bxf6 {[%emt 0:00:46]} Nxf6 {[%emt 0:01:16]} 14. Rfe1 {[%emt 0:00:17]} Ne4 {[%emt 0:09:50]} 15. Ne5 {[%emt 0:04:59]} Bxe5 {[%emt 0:01:49]} 16. dxe5 {[%emt 0:00:03]} Nd2 {[%emt 0:00:56]} 17. Qf4 {[%emt 0:01:29]} Bxg2 {[%emt 0:00:23]} 18. Kxg2 {[%emt 0:00:37]} Nb3 {[%emt 0:00:05]} 19. Rad1 {[%emt 0:05:15]} Qe7 {[%emt 0:01:03]} 20. Qf3 {[%emt 0:10:57]} Na5 {[%emt 0:02:31]} 21. Qe4 {[%emt 0:10:57]} Nc6 {[%emt 0:00:40]} 22. f4 {[%emt 0:03:45]} Rfd8 {[%emt 0:00:40]} 23. Qc4 {[%emt 0:01:08]} Qb4 {[%emt 0:04:54]} 24. Qxb4 {[%emt 0:01:27]} Nxb4 {[%emt 0:00:06]} 25. Kf3 {[%emt 0:01:37]} Kf8 {[%emt 0:00:40]} 26. Ne4 {[%emt 0:03:52]} a5 {[%emt 0:00:53]} 27. Rxd8+ {[%emt 0:00:24]} Rxd8 {[%emt 0:00:05]} 28. Rc1 {[%emt 0:00:18]} Nd5 {[%emt 0:00:48]} 29. g4 {[%emt 0:06:23]} b6 {[%emt 0:00:17]} 30. h4 {[%emt 0:00:27]} Rd7 {[%emt 0:03:51]} 31. g5 {[%emt 0:03:43]} hxg5 {[%emt 0:05:10]} 32. hxg5 {[%emt 0:00:09]} Ne7 {[%emt 0:00:51]} 33. e3 {[%emt 0:01:43]} Nf5 {[%emt 0:01:15]} 34. Ke2 {[%emt 0:00:18]} Ke7 {[%emt 0:01:54]} 35. g6 {[%emt 0:02:00]} c5 {[%emt 0:01:00]} 36. gxf7 {[%emt 0:00:16]} Kxf7 {[%emt 0:00:19]} 37. Rc3 {[%emt 0:01:04]} Rc7 {[%emt 0:02:28]} 38. Rd3 {[%emt 0:04:44]} Rb7 {[%emt 0:08:10]} 39. Rb3 {[%emt 0:07:01]} c4 {[%emt 0:00:17]} 40. Rb5 {[%emt 0:03:08]} Rb8 {[%emt 0:00:26]} 41. Nd2 {[%emt 0:00:59]} Rc8 {[%emt 0:00:04]} 42. Rxb6 {[%emt 0:00:32]} c3 {[%emt 0:00:04]} 43. bxc3 {[%emt 0:00:19]} Rxc3 {[%emt 0:01:08]} 44. Rb3 {[%emt 0:01:52]} Rc2 {[%emt 0:01:35]} 45. Kd3 {[%emt 0:00:41]} Ra2 {[%emt 0:00:15]} 46. Ne4 {[%emt 0:00:19]} Rxa4 {[%emt 0:00:35]} 47. Ng5+ {[%emt 0:00:24]} Kg6 {[%emt 0:04:39]} 48. Nxe6 {[%emt 0:00:10]} Rb4 {[%emt 0:02:14]} 49. Rxb4 {[%emt 0:01:11]} axb4 {[%emt 0:00:03]} 50. Nd4 {[%emt 0:00:15]} Ng3 {[%emt 0:00:54]} 51. e4 {[%emt 0:02:46]} Kf7 {[%emt 0:00:45]} 52. e6+ {[%emt 0:02:50]} Kf6 {[%emt 0:00:33]} 53. f5 {[%emt 0:04:39]} Nh5 {[%emt 0:16:04]} 54. Nc6 {[%emt 0:01:23]} g6 {[%emt 0:00:25]} 55. e7 {[%emt 0:00:14]} Ng7 {[%emt 0:00:03]} 56. fxg6 {[%emt 0:00:13]} Kxg6 {[%emt 0:01:31]} 57. Nxb4 {[%emt 0:00:10]} Kf7 {[%emt 0:01:21]} 58. Nd5 {[%emt 0:00:06]} Ne6 {[%emt 0:01:31]} 59. Ke3 {[%emt 0:00:34]} Ng7 {[%emt 0:01:15]} 60. Kf4 Ke6 {[%emt 0:00:46]} 61. Kg5 {[%emt 0:01:58]} Kf7 {[%emt 0:00:46]} 62. Kg4 {[%emt 0:00:09]} Ke6 {[%emt 0:01:43]} 63. Kf4 {[%emt 0:01:16]} Ne8 {[%emt 0:04:06]} 64. Kg5 {[%emt 0:00:06]} Kf7 {[%emt 0:00:10]} 65. Kf5 {[%emt 0:02:12]} Nd6+ {[%emt 0:00:11]} 66. Ke5 {[%emt 0:00:03]} Nb5 {[%emt 0:01:33]} 67. Kf4 {[%emt 0:00:41]} Nd6 {[%emt 0:00:19]} 68. Ke3 {[%emt 0:00:01]} Ke8 {[%emt 0:01:18]} 69. Kd4 {[%emt 0:00:29]} Nc8 {[%emt 0:00:08]} 70. Kc5 {[%emt 0:04:58]} Kd7 {[%emt 0:01:52]} 71. e5 {[%emt 0:01:54]} Nxe7 {[%emt 0:00:15]} 72. e6+ {[%emt 0:00:05]} Kxe6 {[%emt 0:00:05]} 73. Nxe7 {[%emt 0:00:05]} 1/2-1/2

[Event "2nd Goa GM Open 2019"]
[Site "Goa"]
[Date "2019.06.22"]
[Round "7.15"]
[White "Idani, Pouya"]
[Black "Konguvel, Ponnuswamy"]
[Result "1-0"]
[ECO "B52"]
[WhiteElo "2597"]
[BlackElo "2293"]
[Annotator "RC"]
[PlyCount "131"]
[EventDate "2019.06.17"]
[EventType "swiss"]
[EventCountry "IND"]
[SourceTitle "playchess.com"]
[Source "ChessBase"]
[SourceQuality "1"]
[TimeControl "5400+30"]

1. e4 {[%emt 0:00:00]} c5 {[%emt 0:00:00]} 2. Nf3 {[%emt 0:00:00]} d6 {[%emt 0:01:40]} 3. Bb5+ {[%emt 0:00:00]} Bd7 {[%emt 0:00:10]} 4. Bxd7+ {[%emt 0:00:57]} Qxd7 {[%emt 0:00:04]} 5. c4 {[%emt 0:00:05]} Nf6 {[%emt 0:01:13]} 6. Nc3 {[%emt 0:00:19]} g6 {[%emt 0:00:10]} 7. d4 {[%emt 0:00:20]} cxd4 {[%emt 0:00:14]} 8. Nxd4 {[%emt 0:00:05]} Bg7 {[%emt 0:00:19]} 9. b3 {[%emt 0:01:24]} Qg4 {[%emt 0:08:30]} 10. Qxg4 {[%emt 0:03:35]} Nxg4 {[%emt 0:00:04]} 11. Nde2 {[%emt 0:00:04]} Nc6 {[%emt 0:01:32]} 12. f3 {[%emt 0:02:38]} Nd4 {[%emt 0:12:39]} 13. Bd2 {[%emt 0:08:25]} Nxe2 {[%emt 0:08:03]} 14. Kxe2 {[%emt 0:00:51]} Ne5 {[%emt 0:06:49]} 15. Nd5 {[%emt 0:02:52]} Rc8 {[%emt 0:00:30]} 16. Rac1 {[%emt 0:00:30]} Nc6 {[%emt 0:00:30]} 17. Rhd1 {[%emt 0:00:30]} O-O {[%emt 0:00:30]} 18. Bc3 {[%emt 0:00:30]} f5 {[%emt 0:00:30]} 19. exf5 {[%emt 0:00:30]} Bxc3 {[%emt 0:00:30]} 20. Rxc3 {[%emt 0:00:30]} Rxf5 {[%emt 0:00:30]} 21. Re3 {[%emt 0:00:30]} e5 {[%emt 0:00:30]} 22. Red3 {[%emt 0:00:30]} Rf7 {[%emt 0:00:30]} 23. Nc3 {[%emt 0:00:30]} Nd4+ {[%emt 0:00:30]} 24. Kf2 {[%emt 0:00:30]} Rc6 {[%emt 0:00:30]} 25. Ne2 {[%emt 0:00:30]} Nxe2 {[%emt 0:00:30]} 26. Kxe2 {[%emt 0:19:31]} Rf6 {[%emt 0:28:56]} 27. Rd5 {[%emt 0:00:24]} b6 {[%emt 0:00:48]} 28. Kd3 {[%emt 0:01:15]} Kf7 {[%emt 0:01:32]} 29. Kc3 {[%emt 0:00:07]} Ke7 {[%emt 0:00:07]} 30. Kb4 {[%emt 0:00:15]} a6 {[%emt 0:00:57]} 31. a4 {[%emt 0:01:49]} Rf8 {[%emt 0:06:15]} 32. a5 {[%emt 0:01:49]} Rb8 {[%emt 0:00:51]} 33. R1d3 {[%emt 0:01:21]} bxa5+ {[%emt 0:00:35]} 34. Kxa5 {[%emt 0:00:27]} Rcb6 {[%emt 0:05:15]} 35. Ka4 {[%emt 0:00:25]} Rc6 {[%emt 0:01:51]} 36. Re3 {[%emt 0:02:43]} Kd7 {[%emt 0:01:20]} 37. Rexe5 {[%emt 0:00:44]} Rcb6 {[%emt 0:00:35]} 38. Re3 {[%emt 0:00:12]} Kc6 {[%emt 0:00:49]} 39. h4 {[%emt 0:02:16]} Rb5 {[%emt 0:01:25]} 40. Red3 {[%emt 0:03:24]} Rxd5 {[%emt 0:00:22]} 41. Rxd5 {[%emt 0:00:05]} Re8 {[%emt 0:00:10]} 42. h5 {[%emt 0:08:13]} Re2 {[%emt 0:03:43]} 43. hxg6 {[%emt 0:01:51]} Rxg2 {[%emt 0:00:02]} 44. gxh7 {[%emt 0:00:07]} Rh2 {[%emt 0:00:02]} 45. Ka5 {[%emt 0:04:20]} Rxh7 {[%emt 0:00:02]} 46. Rf5 {[%emt 0:03:07]} Rh2 {[%emt 0:02:07]} 47. f4 {[%emt 0:01:58]} Rh3 {[%emt 0:01:12]} 48. Kb4 {[%emt 0:00:28]} Rf3 {[%emt 0:00:06]} 49. Rf8 {[%emt 0:01:11]} Kd7 {[%emt 0:02:52]} 50. Rf7+ {[%emt 0:02:35]} Ke8 {[%emt 0:01:27]} 51. Ra7 {[%emt 0:04:36]} Rxf4 {[%emt 0:00:02]} 52. Rxa6 {[%emt 0:00:06]} d5 {[%emt 0:00:05]} 53. Rd6 {[%emt 0:00:04]} dxc4 {[%emt 0:01:05]} 54. bxc4 {[%emt 0:00:05]} Ke7 {[%emt 0:00:03]} 55. Rd1 {[%emt 0:00:05]} Rf8 {[%emt 0:01:03]} 56. Kb5 {[%emt 0:00:07]} Rb8+ {[%emt 0:00:22]} 57. Ka6 {[%emt 0:00:05]} Rc8 {[%emt 0:01:04]} 58. Rd4 {[%emt 0:00:06]} Ke6 {[%emt 0:00:38]} 59. Kb7 {[%emt 0:00:05]} Rc5 {[%emt 0:02:23]} 60. Kb6 {[%emt 0:00:07]} Rh5 {[%emt 0:00:41]} 61. c5 {[%emt 0:00:07]} Rh1 {[%emt 0:00:14]} 62. c6 {[%emt 0:00:09]} Rb1+ {[%emt 0:00:21]} 63. Kc7 {[%emt 0:00:05]} Rc1 {[%emt 0:00:14]} 64. Kb7 {[%emt 0:00:04]} Rb1+ {[%emt 0:00:21]} 65. Kc8 {[%emt 0:00:05]} Rc1 {[%emt 0:00:09]} 66. c7 {[%emt 0:00:04]} 1-0

[Event "2nd Goa GM Open 2019"]
[Site "Goa"]
[Date "2019.06.22"]
[Round "7.16"]
[White "Deepan Chakkravarthy J."]
[Black "Ritviz, Parab"]
[Result "1-0"]
[ECO "A05"]
[WhiteElo "2557"]
[BlackElo "2357"]
[Annotator "ChessBase"]
[PlyCount "71"]
[EventDate "2019.06.17"]
[EventType "swiss"]
[EventCountry "IND"]
[SourceTitle "playchess.com"]
[Source "ChessBase"]
[SourceQuality "1"]
[TimeControl "5400+30"]

1. Nf3 {[%emt 0:02:16]} Nf6 {[%emt 0:00:33]} 2. g3 {[%emt 0:00:06]} g6 {[%emt 0:00:07]} 3. Bg2 {[%emt 0:00:04]} Bg7 {[%emt 0:00:04]} 4. O-O {[%emt 0:00:04]} O-O {[%emt 0:00:08]} 5. c4 {[%emt 0:00:02]} c6 {[%emt 0:00:28]} 6. d4 {[%emt 0:00:11]} d5 {[%emt 0:00:06]} 7. Qb3 {[%emt 0:00:03]} dxc4 {[%emt 0:18:17]} 8. Qxc4 {[%emt 0:00:08]} Be6 {[%emt 0:00:13]} 9. Qa4 {[%emt 0:03:13]} Nbd7 {[%emt 0:01:45]} 10. Nc3 {[%emt 0:01:20]} b5 {[%emt 0:29:51]} 11. Qc2 {[%emt 0:01:46]} b4 {[%emt 0:01:30]} 12. Na4 {[%emt 0:00:12]} Bd5 {[%emt 0:00:39]} 13. Bf4 {[%emt 0:01:45]} Rc8 {[%emt 0:06:20]} 14. Rac1 {[%emt 0:08:11]} a5 {[%emt 0:01:37]} 15. Rfd1 {[%emt 0:00:34]} Be4 {[%emt 0:11:15]} 16. Qd2 {[%emt 0:00:14]} Nd5 {[%emt 0:00:08]} 17. Bh6 {[%emt 0:01:57]} Qc7 {[%emt 0:05:29]} 18. Bxg7 {[%emt 0:05:20]} Kxg7 {[%emt 0:00:05]} 19. Ne5 {[%emt 0:00:21]} Bxg2 {[%emt 0:01:39]} 20. Nxd7 {[%emt 0:02:39]} Qxd7 {[%emt 0:00:44]} 21. Kxg2 {[%emt 0:00:04]} f5 {[%emt 0:01:31]} 22. Nc5 {[%emt 0:04:48]} Qd6 {[%emt 0:00:46]} 23. e3 {[%emt 0:04:56]} Nf6 {[%emt 0:06:07]} 24. Qe2 {[%emt 0:03:22]} e5 {[%emt 0:02:53]} 25. Qc4 {[%emt 0:01:30]} Rfe8 {[%emt 0:05:15]} 26. Nb7 {[%emt 0:04:26]} Qb8 {[%emt 0:01:06]} 27. dxe5 {[%emt 0:13:26]} Rxe5 {[%emt 0:00:16]} 28. Nd6 {[%emt 0:00:57]} Rc7 {[%emt 0:00:08]} 29. Qf4 {[%emt 0:00:38]} Rce7 {[%emt 0:04:46]} 30. Rxc6 {[%emt 0:11:48]} Qa8 {[%emt 0:00:13]} 31. Rdc1 {[%emt 0:00:06]} a4 {[%emt 0:00:56]} 32. Kg1 {[%emt 0:00:52]} b3 {[%emt 0:00:13]} 33. axb3 {[%emt 0:00:39]} axb3 {[%emt 0:00:03]} 34. Nc8 {[%emt 0:05:13]} Re4 {[%emt 0:01:09]} 35. Qg5 {[%emt 0:02:13]} Rf7 {[%emt 0:00:24]} 36. Nd6 {[%emt 0:00:04]} 1-0

[Event "2nd Goa GM Open 2019"]
[Site "Goa"]
[Date "2019.06.22"]
[Round "7.17"]
[White "Gukesh D"]
[Black "Sidhant, Mohapatra"]
[Result "1-0"]
[ECO "A37"]
[WhiteElo "2543"]
[BlackElo "2351"]
[Annotator "ChessBase"]
[PlyCount "56"]
[EventDate "2019.06.17"]
[EventType "swiss"]
[EventCountry "IND"]
[SourceTitle "playchess.com"]
[Source "ChessBase"]
[SourceQuality "1"]
[TimeControl "5400+30"]

1. c4 {[%emt 0:00:00]} c5 {[%emt 0:01:06]} 2. g3 {[%emt 0:01:12]} g6 {[%emt 0:00:30]} 3. Bg2 {[%emt 0:01:03]} Bg7 {[%emt 0:00:15]} 4. Nc3 {[%emt 0:00:06]} Nc6 {[%emt 0:00:34]} 5. Nf3 {[%emt 0:00:12]} e6 {[%emt 0:00:50]} 6. d3 {[%emt 0:01:17]} Nge7 {[%emt 0:00:12]} 7. Bd2 {[%emt 0:00:24]} d5 {[%emt 0:04:15]} 8. Qc1 {[%emt 0:04:18]} O-O {[%emt 0:03:55]} 9. h4 {[%emt 0:07:30]} h5 {[%emt 0:01:03]} 10. Bh6 {[%emt 0:00:39]} d4 {[%emt 0:09:26]} 11. Bxg7 {[%emt 0:01:07]} Kxg7 {[%emt 0:00:06]} 12. Ne4 {[%emt 0:00:11]} e5 {[%emt 0:05:39]} 13. a3 {[%emt 0:04:35]} b6 {[%emt 0:01:06]} 14. b4 {[%emt 0:01:14]} Bf5 {[%emt 0:00:24]} 15. Ned2 {[%emt 0:06:59]} Qd6 {[%emt 0:00:33]} 16. bxc5 {[%emt 0:00:30]} bxc5 {[%emt 0:00:30]} 17. O-O {[%emt 0:00:30]} Rab8 {[%emt 0:00:30]} 18. Qc2 {[%emt 0:00:30]} Qc7 {[%emt 0:00:30]} 19. Rfb1 {[%emt 0:00:30]} Na5 {[%emt 0:00:30]} 20. Ng5 {[%emt 0:00:30]} Bd7 {[%emt 0:00:30]} 21. Bd5 {[%emt 0:00:30]} Nxd5 {[%emt 0:00:30]} 22. cxd5 {[%emt 0:00:30]} Bg4 {[%emt 0:00:30]} 23. Nde4 {[%emt 0:00:30]} c4 {[%emt 0:00:30]} 24. Rb4 {[%emt 0:00:30]} c3 {[%emt 0:00:30]} 25. e3 {[%emt 0:00:30]} f6 {[%emt 0:00:30]} 26. Ne6+ {[%emt 0:00:30]} Bxe6 {[%emt 0:00:30]} 27. dxe6 {[%emt 0:00:30]} Nc6 {[%emt 0:00:30]} 28. Rc4 {[%emt 0:00:30]} Qb6 {[%emt 0:00:30]} 1-0

[Event "2nd Goa GM Open 2019"]
[Site "Goa"]
[Date "2019.06.22"]
[Round "7.18"]
[White "Malakhatko, Vadim"]
[Black "Rohith Krishna S"]
[Result "1-0"]
[ECO "A14"]
[WhiteElo "2505"]
[BlackElo "2347"]
[Annotator "ChessBase"]
[PlyCount "81"]
[EventDate "2019.06.17"]
[EventType "swiss"]
[EventCountry "IND"]
[SourceTitle "playchess.com"]
[Source "ChessBase"]
[SourceQuality "1"]
[TimeControl "5400+30"]

1. c4 {[%emt 0:00:02]} e6 {[%emt 0:00:00]} 2. g3 {[%emt 0:00:38]} Nf6 {[%emt 0:00:00]} 3. Bg2 {[%emt 0:00:11]} d5 {[%emt 0:00:09]} 4. Nf3 {[%emt 0:00:07]} Be7 {[%emt 0:00:06]} 5. O-O {[%emt 0:00:07]} O-O {[%emt 0:00:39]} 6. d4 {[%emt 0:00:06]} b6 {[%emt 0:00:41]} 7. cxd5 {[%emt 0:00:35]} exd5 {[%emt 0:00:09]} 8. Nc3 {[%emt 0:00:30]} Bb7 {[%emt 0:01:09]} 9. Bf4 {[%emt 0:00:17]} c5 {[%emt 0:02:26]} 10. Rc1 {[%emt 0:02:04]} Nbd7 {[%emt 0:01:32]} 11. Ne5 {[%emt 0:04:48]} Ne4 {[%emt 0:09:49]} 12. Nxe4 {[%emt 0:34:50]} dxe4 {[%emt 0:00:38]} 13. Nxd7 {[%emt 0:00:07]} Qxd7 {[%emt 0:00:10]} 14. dxc5 {[%emt 0:00:03]} Qxd1 {[%emt 0:00:31]} 15. Rfxd1 {[%emt 0:00:05]} Bxc5 {[%emt 0:00:03]} 16. Bd6 {[%emt 0:01:50]} Bxd6 {[%emt 0:01:38]} 17. Rxd6 {[%emt 0:00:05]} Rfd8 {[%emt 0:08:25]} 18. Rxd8+ {[%emt 0:00:29]} Rxd8 {[%emt 0:00:06]} 19. Rc7 {[%emt 0:00:07]} Rb8 {[%emt 0:00:10]} 20. g4 {[%emt 0:07:55]} Kf8 {[%emt 0:06:06]} 21. g5 {[%emt 0:01:36]} b5 {[%emt 0:01:35]} 22. h4 {[%emt 0:07:07]} a6 {[%emt 0:00:53]} 23. Kh2 {[%emt 0:02:48]} Bd5 {[%emt 0:03:05]} 24. b3 {[%emt 0:06:00]} Rd8 {[%emt 0:02:50]} 25. e3 {[%emt 0:00:57]} h6 {[%emt 0:00:10]} 26. Kg3 {[%emt 0:02:55]} hxg5 {[%emt 0:00:07]} 27. hxg5 {[%emt 0:00:03]} Rd6 {[%emt 0:05:03]} 28. Kf4 {[%emt 0:00:53]} Bc6 {[%emt 0:00:12]} 29. b4 {[%emt 0:05:18]} g6 {[%emt 0:07:41]} 30. a3 {[%emt 0:03:19]} f6 {[%emt 0:00:18]} 31. Bh3 {[%emt 0:03:57]} Be8 {[%emt 0:00:58]} 32. Kxe4 {[%emt 0:04:55]} fxg5 {[%emt 0:02:33]} 33. Bg4 {[%emt 0:00:17]} Rd2 {[%emt 0:04:08]} 34. f3 {[%emt 0:00:05]} Ra2 {[%emt 0:00:04]} 35. Rc3 {[%emt 0:04:04]} Rd2 {[%emt 0:00:53]} 36. Ke5 {[%emt 0:02:04]} Kg7 {[%emt 0:00:47]} 37. e4 {[%emt 0:00:42]} Kh6 {[%emt 0:00:41]} 38. Rc8 {[%emt 0:01:09]} Bd7 {[%emt 0:01:01]} 39. Rh8+ {[%emt 0:01:57]} Kg7 {[%emt 0:00:10]} 40. Rd8 {[%emt 0:00:04]} Bxg4 {[%emt 0:00:06]} 41. Rd7+ {[%emt 0:00:01] Rd3 Rxd3 Bxf3 Rd2 g4 Kd4 Kf6 Ke3 Ke5 Rd6 Bxe4 Rxa6 g3 Rb6 Bd5 Rxb5 g5 a4 g4 a5 g2 a6 g3 Kf2} 1-0

[Event "2nd Goa GM Open 2019"]
[Site "Goa"]
[Date "2019.06.22"]
[Round "7.19"]
[White "Anurag, Mhamal"]
[Black "Pranav Anand"]
[Result "1-0"]
[ECO "C54"]
[WhiteElo "2497"]
[BlackElo "2340"]
[Annotator "ChessBase"]
[PlyCount "71"]
[EventDate "2019.06.17"]
[EventType "swiss"]
[EventCountry "IND"]
[SourceTitle "playchess.com"]
[Source "ChessBase"]
[SourceQuality "1"]
[TimeControl "5400+30"]

1. e4 {[%emt 0:00:00]} e5 {[%emt 0:00:00]} 2. Nf3 {[%emt 0:00:09]} Nc6 {[%emt 0:00:00]} 3. Bc4 {[%emt 0:00:04]} Bc5 {[%emt 0:00:00]} 4. c3 {[%emt 0:00:11]} Nf6 {[%emt 0:00:00]} 5. d4 {[%emt 0:00:08]} exd4 {[%emt 0:00:03]} 6. e5 {[%emt 0:00:03]} d5 {[%emt 0:00:11]} 7. Bb5 {[%emt 0:00:04]} Ne4 {[%emt 0:00:05]} 8. cxd4 {[%emt 0:00:03]} Bb6 {[%emt 0:00:04]} 9. Nc3 {[%emt 0:00:07]} Bg4 {[%emt 0:01:14]} 10. Be3 {[%emt 0:00:03]} O-O {[%emt 0:01:43]} 11. h3 {[%emt 0:00:03]} Bh5 {[%emt 0:02:20]} 12. Qc2 {[%emt 0:00:04]} Bg6 {[%emt 0:01:21]} 13. Qb3 {[%emt 0:00:09]} Ne7 {[%emt 0:07:25]} 14. Nh4 {[%emt 0:07:21]} c6 {[%emt 0:11:58]} 15. Nxg6 {[%emt 0:00:45]} Nxg6 {[%emt 0:07:28]} 16. Bd3 {[%emt 0:02:16]} Nxc3 {[%emt 0:00:28]} 17. bxc3 {[%emt 0:00:18]} f5 {[%emt 0:00:14]} 18. exf6 {[%emt 0:03:05]} Qxf6 {[%emt 0:00:07]} 19. g3 {[%emt 0:00:09]} Rae8 {[%emt 0:03:02]} 20. O-O-O {[%emt 0:00:25]} Bc7 {[%emt 0:05:37]} 21. Rde1 {[%emt 0:46:16]} b6 {[%emt 0:10:57]} 22. h4 {[%emt 0:00:11]} h6 {[%emt 0:00:30]} 23. Re2 {[%emt 0:12:42]} Ne7 {[%emt 0:15:53]} 24. Rhe1 {[%emt 0:00:07]} Nf5 {[%emt 0:02:05]} 25. Bd2 {[%emt 0:00:16]} Rxe2 {[%emt 0:00:57]} 26. Rxe2 {[%emt 0:00:02]} Bd6 {[%emt 0:00:55]} 27. Qa4 {[%emt 0:12:36]} a5 {[%emt 0:00:58]} 28. Kd1 {[%emt 0:01:55]} Ne7 {[%emt 0:01:45]} 29. Bb1 {[%emt 0:01:00]} Qf3 {[%emt 0:01:26]} 30. Qc2 {[%emt 0:00:10]} Nf5 {[%emt 0:00:53]} 31. Qd3 {[%emt 0:00:17]} Qg2 {[%emt 0:06:50]} 32. Be1 {[%emt 0:01:14]} h5 {[%emt 0:01:00]} 33. Re6 {[%emt 0:01:20]} Qh3 {[%emt 0:01:00]} 34. Qe2 {[%emt 0:05:25]} Bxg3 {[%emt 0:05:23]} 35. Re8 {[%emt 0:04:32]} Nxh4 {[%emt 0:07:21]} 36. Qxh5 {[%emt 0:00:50]} 1-0

[Event "2nd Goa GM Open 2019"]
[Site "Goa"]
[Date "2019.06.22"]
[Round "7.20"]
[White "Gagare, Shardul"]
[Black "Rathnakaran, K.."]
[Result "1-0"]
[ECO "B30"]
[WhiteElo "2482"]
[BlackElo "2338"]
[Annotator "ChessBase"]
[PlyCount "49"]
[EventDate "2019.06.17"]
[EventType "swiss"]
[EventCountry "IND"]
[SourceTitle "playchess.com"]
[Source "ChessBase"]
[SourceQuality "1"]
[TimeControl "5400+30"]

1. e4 {[%emt 0:00:29]} c5 {[%emt 0:00:00]} 2. Nf3 {[%emt 0:00:07]} Nc6 {[%emt 0:00:00]} 3. Bb5 {[%emt 0:00:05]} e6 {[%emt 0:01:21]} 4. O-O {[%emt 0:03:44]} Nge7 {[%emt 0:00:35]} 5. d4 {[%emt 0:00:13]} cxd4 {[%emt 0:00:56]} 6. Nxd4 {[%emt 0:00:07]} Nxd4 {[%emt 0:01:28]} 7. Qxd4 {[%emt 0:00:09]} a6 {[%emt 0:00:07]} 8. Be2 {[%emt 0:09:26]} Qc7 {[%emt 0:02:06]} 9. Be3 {[%emt 0:05:45]} Qxc2 {[%emt 0:10:34]} 10. Nc3 {[%emt 0:15:19]} Nc6 {[%emt 0:00:52]} 11. Qb6 {[%emt 0:00:52]} Bb4 {[%emt 0:00:06]} 12. Rfc1 {[%emt 0:20:04]} Qxb2 {[%emt 0:00:52]} 13. Rab1 {[%emt 0:12:07]} Qa3 {[%emt 0:02:45]} 14. Rb3 {[%emt 0:14:42]} Qa5 {[%emt 0:01:25]} 15. e5 {[%emt 0:04:15]} Bxc3 {[%emt 0:08:09]} 16. Rbxc3 {[%emt 0:00:20]} Qxe5 {[%emt 0:00:57]} 17. Rc5 {[%emt 0:00:36]} Qb8 {[%emt 0:08:29]} 18. Rg5 {[%emt 0:05:02]} O-O {[%emt 0:03:30]} 19. Qc5 {[%emt 0:01:13]} f6 {[%emt 0:04:22]} 20. Rxg7+ {[%emt 0:00:18]} Kxg7 {[%emt 0:00:37]} 21. Bh6+ {[%emt 0:00:04]} Kxh6 {[%emt 0:00:58]} 22. Qxf8+ {[%emt 0:00:06]} Kg6 {[%emt 0:01:44]} 23. Qg8+ {[%emt 0:01:18]} Kf5 {[%emt 0:00:54]} 24. Rc5+ {[%emt 0:00:11]} Ke4 {[%emt 0:06:38]} 25. Qg4+ {[%emt 0:00:08] Kd5} 1-0

[Event "2nd Goa GM Open 2019"]
[Site "Goa"]
[Date "2019.06.22"]
[Round "7.21"]
[White "Kunte, Abhijit"]
[Black "Rathanvel, V S"]
[Result "1/2-1/2"]
[ECO "A04"]
[WhiteElo "2478"]
[BlackElo "2314"]
[Annotator "ChessBase"]
[PlyCount "49"]
[EventDate "2019.06.17"]
[EventType "swiss"]
[EventCountry "IND"]
[SourceTitle "playchess.com"]
[Source "ChessBase"]
[SourceQuality "1"]
[TimeControl "5400+30"]

1. Nf3 {[%emt 0:00:22]} c5 {[%emt 0:00:00]} 2. c4 {[%emt 0:02:15]} Nc6 {[%emt 0:00:00]} 3. Nc3 {[%emt 0:00:34]} g6 {[%emt 0:00:00]} 4. e3 {[%emt 0:00:20]} Nf6 {[%emt 0:09:26]} 5. d4 {[%emt 0:01:27]} cxd4 {[%emt 0:00:06]} 6. exd4 {[%emt 0:00:04]} d5 {[%emt 0:00:09]} 7. cxd5 {[%emt 0:00:10]} Nxd5 {[%emt 0:00:06]} 8. Qb3 {[%emt 0:00:10]} Nxc3 {[%emt 0:01:00]} 9. Bc4 {[%emt 0:00:37]} e6 {[%emt 0:00:08]} 10. bxc3 {[%emt 0:00:06]} Be7 {[%emt 0:00:10]} 11. Bh6 {[%emt 0:12:11]} Bf8 {[%emt 0:00:05]} 12. Bxf8 {[%emt 0:05:33]} Kxf8 {[%emt 0:00:06]} 13. O-O {[%emt 0:00:04]} Kg7 {[%emt 0:00:17]} 14. Bd3 {[%emt 0:04:57]} b6 {[%emt 0:04:51]} 15. Be4 {[%emt 0:06:38]} Bb7 {[%emt 0:08:03]} 16. Qb2 {[%emt 0:01:06]} Qf6 {[%emt 0:00:30]} 17. Rad1 {[%emt 0:00:30]} Rhe8 {[%emt 0:23:05]} 18. Bxc6 {[%emt 0:09:23]} Bxc6 {[%emt 0:00:30]} 19. Ne5 {[%emt 0:00:04]} Rac8 {[%emt 0:01:01]} 20. c4 {[%emt 0:04:04]} Kg8 {[%emt 0:03:09]} 21. Qa3 {[%emt 0:03:06]} Qg5 {[%emt 0:02:12]} 22. Nxc6 {[%emt 0:06:02]} Rxc6 {[%emt 0:00:39]} 23. Qxa7 {[%emt 0:00:08]} Rxc4 {[%emt 0:00:06]} 24. Qxb6 {[%emt 0:00:06]} Qd5 {[%emt 0:00:37]} 25. Qb3 {[%emt 0:00:15]} 1/2-1/2